[Event "The Allsvenskan 2024/25 Div I 3: SS Manhem II - Lidkopings SS"]
[Site "Goteborgs Schackcentrum, Vegatan 20, Gothenburg, Sweden"]
[Date "2024.11.17"]
[Round "1.1"]
[White "Al Waeli, Laith"]
[Black "Outgajjouft, Said"]
[Result "0-1"]
[TimeControl "90 minutes for 40 moves + 30 minutes for the rest of the game + 30 seconds per move from move one."]
[WhiteTitle "FM"]
[WhiteFideId "4801059"]
[BlackFideId "1716174"]
[WhiteElo "2049"]
[BlackElo "2045"]

1. e4 {[%clk 01:29:00]} {[%emt 00:01:59]} Nf6 {[%clk 01:30:53]} {[%emt
00:00:08]} 2. d3 {[%clk 01:29:25]} {[%emt 00:00:05]} d5 {[%clk 01:30:49]}
{[%emt 00:00:35]} 3. e5 {[%clk 01:28:15]} {[%emt 00:01:39]} Nfd7 {[%clk
01:31:13]} {[%emt 00:00:06]} 4. Nf3 {[%clk 01:28:40]} {[%emt 00:00:05]} c5
{[%clk 01:30:50]} {[%emt 00:00:54]} 5. Qe2 {[%clk 01:26:04]} {[%emt 00:03:05]}
Nb6 {[%clk 01:28:06]} {[%emt 00:03:14]} 6. a4 {[%clk 01:23:58]} {[%emt
00:02:37]} Bg4 {[%clk 01:21:21]} {[%emt 00:07:14]} 7. Nbd2 {[%clk 01:14:17]}
{[%emt 00:10:11]} Nc6 {[%clk 01:14:29]} {[%emt 00:07:22]} 8. h3 {[%clk
01:14:29]} {[%emt 00:00:18]} Nd4 {[%clk 01:10:59]} {[%emt 00:04:00]} 9. Qd1
{[%clk 01:14:57]} {[%emt 00:00:02]} Nxf3+ {[%clk 01:04:37]} {[%emt 00:06:53]}
10. Nxf3 {[%clk 01:15:19]} {[%emt 00:00:07]} Bh5 {[%clk 01:02:51]} {[%emt
00:02:16]} 11. g4 {[%clk 01:09:06]} {[%emt 00:06:43]} Bg6 {[%clk 01:02:12]}
{[%emt 00:01:10]} 12. e6 {[%clk 01:09:34]} Qd6 {[%clk 01:00:35]} {[%emt
00:02:07]} 13. exf7+ {[%clk 01:07:30]} {[%emt 00:02:34]} Bxf7 {[%clk 01:01:03]}
{[%emt 00:00:02]} 14. a5 {[%clk 01:06:50]} {[%emt 00:01:11]} Nd7 {[%clk
01:00:48]} {[%emt 00:00:44]} 15. d4 {[%clk 01:07:14]} {[%emt 00:00:06]} cxd4
{[%clk 00:49:11]} {[%emt 00:12:08]} 16. Nxd4 {[%clk 01:03:46]} {[%emt
00:03:58]} a6 {[%clk 00:48:49]} {[%emt 00:00:52]} 17. Bg2 {[%clk 00:48:50]}
{[%emt 00:15:25]} g6 {[%clk 00:35:52]} {[%emt 00:13:27]} 18. c3 {[%clk
00:48:09]} {[%emt 00:01:12]} Bg7 {[%clk 00:34:49]} {[%emt 00:01:32]} 19. Be3
{[%clk 00:37:08]} {[%emt 00:11:31]} O-O {[%clk 00:29:11]} {[%emt 00:06:09]} 20.
O-O {[%clk 00:36:00]} {[%emt 00:01:38]} Rad8 {[%clk 00:20:45]} {[%emt
00:08:56]} 21. Nf3 {[%clk 00:35:28]} {[%emt 00:01:01]} h6 {[%clk 00:21:00]}
{[%emt 00:00:15]} 22. Qd2 {[%clk 00:35:25]} {[%emt 00:00:33]} Kh7 {[%clk
00:21:23]} {[%emt 00:00:07]} 23. Bf4 {[%clk 00:31:58]} {[%emt 00:03:56]} e5
{[%clk 00:17:44]} {[%emt 00:04:10]} 24. Bg3 {[%clk 00:24:38]} {[%emt 00:07:49]}
Nc5 {[%clk 00:15:47]} {[%emt 00:02:28]} 25. Qc2 {[%clk 00:25:00]} {[%emt
00:00:08]} Ne6 {[%clk 00:15:18]} {[%emt 00:00:59]} 26. Rfe1 {[%clk 00:16:59]}
{[%emt 00:08:31]} Nf4 {[%clk 00:15:40]} {[%emt 00:00:09]} 27. Rad1 {[%clk
00:16:07]} {[%emt 00:01:22]} Bg8 {[%clk 00:12:57]} {[%emt 00:03:13]} 28. Bf1
{[%clk 00:15:04]} {[%emt 00:01:33]} Nxh3+ {[%clk 00:13:04]} {[%emt 00:00:23]}
29. Bxh3 {[%clk 00:15:32]} Rxf3 {[%clk 00:13:24]} {[%emt 00:00:11]} 30. Qe2
{[%clk 00:13:18]} {[%emt 00:02:44]} Rdf8 {[%clk 00:09:36]} {[%emt 00:04:17]} 31.
Bg2 {[%clk 00:13:34]} {[%emt 00:00:15]} Rxg3 {[%clk 00:10:00]} {[%emt
00:00:06]} 32. fxg3 {[%clk 00:13:58]} {[%emt 00:00:06]} e4 {[%clk 00:07:45]}
{[%emt 00:02:45]} 33. Qxe4 {[%clk 00:12:55]} {[%emt 00:01:32]} Qxg3 {[%clk
00:08:12]} {[%emt 00:00:04]} 34. Qe2 {[%clk 00:11:12]} {[%emt 00:02:13]} Rf4
{[%clk 00:07:47]} {[%emt 00:00:55]} 35. Rd3 {[%clk 00:10:52]} {[%emt 00:00:50]}
Qh4 {[%clk 00:08:12]} {[%emt 00:00:05]} 36. Rh3 {[%clk 00:07:36]} {[%emt
00:03:45]} Qg5 {[%clk 00:08:31]} {[%emt 00:00:12]} 37. Rg3 {[%clk 00:07:17]}
{[%emt 00:00:49]} d4 {[%clk 00:06:49]} {[%emt 00:02:12]} 38. Bxb7 {[%clk
00:02:39]} {[%emt 00:05:08]} dxc3 {[%clk 00:06:19]} {[%emt 00:01:01]} 39. bxc3
{[%clk 00:03:02]} {[%emt 00:00:06]} Qxa5 {[%clk 00:06:44]} {[%emt 00:00:05]} 40.
Qe3 {[%clk 00:02:34]} {[%emt 00:00:57]} Rc4 {[%clk 00:04:11]} {[%emt 00:03:03]}
41. Rh3 {[%clk 00:27:09]} {[%emt 00:05:55]} Rxg4+ {[%clk 00:24:01]} {[%emt
00:10:40]} 42. Rg3 {[%clk 00:24:33]} {[%emt 00:03:06]} Rxg3+ {[%clk 00:24:22]}
{[%emt 00:00:10]} 43. Qxg3 {[%clk 00:24:58]} {[%emt 00:00:05]} Qb6+ {[%clk
00:24:50]} {[%emt 00:00:02]} 44. Re3 {[%clk 00:22:48]} {[%emt 00:02:39]} Qxb7
{[%clk 00:24:09]} {[%emt 00:01:12]} 45. Rd3 {[%clk 00:19:59]} {[%emt 00:03:18]}
Qc6 {[%clk 00:23:19]} {[%emt 00:01:21]} 46. Rd6 {[%clk 00:19:55]} {[%emt
00:00:35]} Qc5+ {[%clk 00:21:46]} {[%emt 00:02:01]} 47. Kh1 {[%clk 00:19:26]}
{[%emt 00:00:58]} Bd5+ {[%clk 00:20:39]} {[%emt 00:01:38]} 48. Kh2 {[%clk
00:19:47]} {[%emt 00:00:09]} Be4 {[%clk 00:21:00]} {[%emt 00:00:10]} 49. Rd7
{[%clk 00:17:20]} {[%emt 00:02:57]} Bf5 {[%clk 00:10:31]} {[%emt 00:11:00]} 50.
Rc7 {[%clk 00:17:27]} {[%emt 00:00:21]} Qa5 {[%clk 00:10:59]} {[%emt 00:00:03]}
51. Qd6 {[%clk 00:16:42]} {[%emt 00:01:14]} Qa2+ {[%clk 00:09:46]} {[%emt
00:01:42]} 52. Kg3 {[%clk 00:15:01]} {[%emt 00:02:12]} a5 {[%clk 00:07:39]}
{[%emt 00:02:38]} 53. Qe5 {[%clk 00:13:20]} {[%emt 00:02:10]} Qg8 {[%clk
00:08:00]} {[%emt 00:00:10]} 54. Qxa5 {[%clk 00:13:42]} {[%emt 00:00:08]} Qe6
{[%clk 00:06:32]} {[%emt 00:01:55]} 55. Qc5 {[%clk 00:10:12]} {[%emt 00:04:03]}
Qf6 {[%clk 00:04:28]} {[%emt 00:02:35]} 56. Qe3 {[%clk 00:03:28]} {[%emt
00:07:13]} h5 {[%clk 00:03:39]} {[%emt 00:01:20]} 57. Qe7 {[%clk 00:02:48]}
{[%emt 00:01:09]} Qxe7 {[%clk 00:03:18]} {[%emt 00:00:51]} 58. Rxe7 {[%clk
00:03:12]} {[%emt 00:00:05]} Kh6 {[%clk 00:03:40]} {[%emt 00:00:08]} 59. c4
{[%clk 00:02:14]} {[%emt 00:01:29]} Bf6 {[%clk 00:04:03]} {[%emt 00:00:07]} 60.
Re8 {[%clk 00:01:53]} {[%emt 00:00:50]} h4+ {[%clk 00:03:57]} {[%emt 00:00:37]}
61. Kf4 {[%clk 00:01:59]} {[%emt 00:00:22]} Bg5+ {[%clk 00:02:56]} {[%emt
00:01:32]} 62. Kf3 {[%clk 00:02:23]} {[%emt 00:00:06]} Bc1 {[%clk 00:02:49]}
{[%emt 00:00:37]} 63. c5 {[%clk 00:02:27]} {[%emt 00:00:27]} Kg5 {[%clk
00:03:01]} {[%emt 00:00:18]} 64. c6 {[%clk 00:02:38]} {[%emt 00:00:19]} h3
{[%clk 00:03:22]} {[%emt 00:00:09]} 65. Re1 {[%clk 00:01:29]} {[%emt 00:01:39]}
Ba3 {[%clk 00:03:17]} {[%emt 00:00:35]} 66. Rg1+ {[%clk 00:00:47]} {[%emt
00:01:12]} Kf6 {[%clk 00:03:14]} {[%emt 00:00:33]} 67. Rd1 {[%clk 00:00:45]}
{[%emt 00:00:31]} Ke7 {[%clk 00:02:35]} {[%emt 00:01:10]} 68. c7 {[%clk
00:00:38]} {[%emt 00:00:38]} Bd6 {[%clk 00:02:53]} {[%emt 00:00:11]} 69. Rc1
{[%clk 00:01:03]} {[%emt 00:00:05]} h2 {[%clk 00:02:57]} {[%emt 00:00:26]} 70.
Kg2 {[%clk 00:01:11]} {[%emt 00:00:22]} Be4+ {[%clk 00:03:13]} {[%emt
00:00:14]} 71. Kh3 {[%clk 00:01:36]} {[%emt 00:00:05]} Bb7 {[%clk 00:03:38]}
{[%emt 00:00:05]} 0-1

[Event "The Allsvenskan 2024/25 Div I 3: SS Manhem II - Lidkopings SS"]
[Site "Goteborgs Schackcentrum, Vegatan 20, Gothenburg, Sweden"]
[Date "2024.11.17"]
[Round "1.2"]
[White "Bengtsson, Jessica"]
[Black "Fransson, Peter"]
[Result "1/2-1/2"]
[TimeControl "90 minutes for 40 moves + 30 minutes for the rest of the game + 30 seconds per move from move one."]
[WhiteTitle "WFM"]
[WhiteFideId "1711083"]
[BlackFideId "1701142"]
[WhiteElo "2016"]
[BlackElo "2259"]

1. e4 {[%clk 01:30:57]} {[%emt 00:00:02]} c5 {[%clk 01:29:53]} {[%emt
00:01:07]} 2. c3 {[%clk 01:31:15]} {[%emt 00:00:12]} a6 {[%clk 01:30:17]}
{[%emt 00:00:07]} 3. d4 {[%clk 01:31:31]} {[%emt 00:00:14]} cxd4 {[%clk
01:30:37]} {[%emt 00:00:09]} 4. cxd4 {[%clk 01:31:55]} {[%emt 00:00:06]} d5
{[%clk 01:31:01]} {[%emt 00:00:06]} 5. exd5 {[%clk 01:31:41]} {[%emt 00:00:44]}
Nf6 {[%clk 01:31:29]} {[%emt 00:00:02]} 6. Nc3 {[%clk 01:30:36]} {[%emt
00:01:35]} Nxd5 {[%clk 01:31:44]} {[%emt 00:00:15]} 7. Nf3 {[%clk 01:28:04]}
{[%emt 00:03:03]} Nc6 {[%clk 01:25:33]} {[%emt 00:06:40]} 8. a3 {[%clk
01:25:36]} {[%emt 00:02:59]} e6 {[%clk 01:08:06]} {[%emt 00:17:57]} 9. Bd3
{[%clk 01:22:42]} {[%emt 00:03:24]} Be7 {[%clk 01:05:28]} {[%emt 00:03:07]} 10.
O-O {[%clk 01:21:21]} {[%emt 00:01:50]} Nf6 {[%clk 00:59:34]} {[%emt 00:06:25]}
11. Re1 {[%clk 01:13:17]} {[%emt 00:08:35]} h6 {[%clk 00:50:17]} {[%emt
00:09:47]} 12. Bc2 {[%clk 01:08:58]} {[%emt 00:04:48]} b5 {[%clk 00:48:09]}
{[%emt 00:02:38]} 13. Ne4 {[%clk 01:01:39]} {[%emt 00:07:49]} Bb7 {[%clk
00:45:27]} {[%emt 00:03:12]} 14. Nxf6+ {[%clk 00:55:58]} {[%emt 00:06:11]} gxf6
{[%clk 00:45:55]} {[%emt 00:00:02]} 15. Bf4 {[%clk 00:54:11]} {[%emt 00:02:16]}
Na5 {[%clk 00:44:31]} {[%emt 00:01:54]} 16. Be4 {[%clk 00:46:52]} {[%emt
00:07:50]} Bxe4 {[%clk 00:43:48]} {[%emt 00:01:14]} 17. Rxe4 {[%clk 00:47:20]}
{[%emt 00:00:02]} Qd5 {[%clk 00:43:24]} {[%emt 00:00:54]} 18. Re3 {[%clk
00:38:14]} {[%emt 00:09:36]} Rc8 {[%clk 00:43:25]} {[%emt 00:00:28]} 19. Rc1
{[%clk 00:37:10]} {[%emt 00:01:34]} Rxc1 {[%clk 00:37:55]} {[%emt 00:06:00]} 20.
Qxc1 {[%clk 00:37:38]} {[%emt 00:00:02]} Nc6 {[%clk 00:38:14]} {[%emt
00:00:11]} 21. Rc3 {[%clk 00:27:12]} {[%emt 00:10:57]} Kd7 {[%clk 00:29:23]}
{[%emt 00:09:20]} 22. Bxh6 {[%clk 00:25:34]} {[%emt 00:02:09]} Rg8 {[%clk
00:29:52]} {[%emt 00:00:01]} 23. Qe3 {[%clk 00:19:07]} {[%emt 00:06:57]} Rg4
{[%clk 00:29:06]} {[%emt 00:01:15]} 24. Rd3 {[%clk 00:18:06]} {[%emt 00:01:31]}
Bd6 {[%clk 00:27:12]} {[%emt 00:02:23]} 25. h3 {[%clk 00:15:08]} {[%emt
00:03:29]} Rg8 {[%clk 00:20:53]} {[%emt 00:06:48]} 26. Bf4 {[%clk 00:15:06]}
{[%emt 00:00:33]} Ne7 {[%clk 00:18:03]} {[%emt 00:03:20]} 27. Bxd6 {[%clk
00:14:56]} {[%emt 00:00:41]} Qxd6 {[%clk 00:17:11]} {[%emt 00:01:21]} 28. Ne5+
{[%clk 00:09:19]} {[%emt 00:06:07]} Ke8 {[%clk 00:17:19]} {[%emt 00:00:23]} 29.
Ng4 {[%clk 00:09:23]} {[%emt 00:00:26]} Nd5 {[%clk 00:17:09]} {[%emt 00:00:39]}
30. Qf3 {[%clk 00:08:51]} {[%emt 00:01:03]} Ke7 {[%clk 00:17:06]} {[%emt
00:00:32]} 31. Rd1 {[%clk 00:08:02]} {[%emt 00:01:19]} Qf4 {[%clk 00:12:17]}
{[%emt 00:05:19]} 32. Qxf4 {[%clk 00:07:50]} {[%emt 00:00:43]} Nxf4 {[%clk
00:12:44]} {[%emt 00:00:02]} 33. Re1 {[%clk 00:05:32]} {[%emt 00:02:48]} Rd8
{[%clk 00:10:51]} {[%emt 00:02:24]} 34. Ne3 {[%clk 00:05:19]} {[%emt 00:00:43]}
Kf8 {[%clk 00:11:03]} {[%emt 00:00:16]} 35. Nc2 {[%clk 00:04:59]} {[%emt
00:00:51]} Rc8 {[%clk 00:11:20]} {[%emt 00:00:12]} 36. Ne3 {[%clk 00:04:19]}
{[%emt 00:01:11]} Rd8 {[%clk 00:11:10]} {[%emt 00:00:40]} 37. Nc2 {[%clk
00:04:22]} {[%emt 00:00:27]} Rc8 {[%clk 00:06:05]} {[%emt 00:05:35]} 38. Ne3
{[%clk 00:03:21]} {[%emt 00:01:31]} Rd8 {[%clk 00:05:20]} 1/2-1/2

[Event "The Allsvenskan 2024/25 Div I 3: SS Manhem II - Lidkopings SS"]
[Site "Goteborgs Schackcentrum, Vegatan 20, Gothenburg, Sweden"]
[Date "2024.11.17"]
[Round "1.3"]
[White "Bergenwall, Henric"]
[Black "Bengtsson, Jonas"]
[Result "1-0"]
[TimeControl "90 minutes for 40 moves + 30 minutes for the rest of the game + 30 seconds per move from move one."]
[WhiteFideId "1747924"]
[BlackFideId "1715135"]
[WhiteElo "1991"]
[BlackElo "2007"]

1. e4 {[%clk 01:30:56]} {[%emt 00:00:04]} c5 {[%clk 01:30:55]} {[%emt
00:00:06]} 2. Nf3 {[%clk 01:31:16]} {[%emt 00:00:09]} e6 {[%clk 01:31:20]}
{[%emt 00:00:05]} 3. g3 {[%clk 01:31:33]} {[%emt 00:00:13]} Nc6 {[%clk
01:31:24]} {[%emt 00:00:27]} 4. Bg2 {[%clk 01:31:46]} {[%emt 00:00:16]} d5
{[%clk 01:31:33]} {[%emt 00:00:22]} 5. exd5 {[%clk 01:31:52]} {[%emt 00:00:24]}
exd5 {[%clk 01:31:57]} {[%emt 00:00:05]} 6. d4 {[%clk 01:32:00]} {[%emt
00:00:22]} Bd6 {[%clk 01:24:47]} {[%emt 00:07:41]} 7. O-O {[%clk 01:31:36]}
{[%emt 00:00:54]} Nge7 {[%clk 01:25:12]} {[%emt 00:00:05]} 8. dxc5 {[%clk
01:29:37]} {[%emt 00:02:30]} Bxc5 {[%clk 01:25:36]} {[%emt 00:00:04]} 9. c3
{[%clk 01:21:01]} {[%emt 00:09:07]} O-O {[%clk 01:24:16]} {[%emt 00:01:50]} 10.
Nbd2 {[%clk 01:20:35]} {[%emt 00:00:55]} Bg4 {[%clk 01:23:18]} {[%emt
00:01:28]} 11. Nb3 {[%clk 01:16:14]} {[%emt 00:04:51]} Bb6 {[%clk 01:23:35]}
{[%emt 00:00:13]} 12. h3 {[%clk 01:15:28]} {[%emt 00:01:16]} Bh5 {[%clk
01:19:25]} {[%emt 00:04:41]} 13. g4 {[%clk 01:09:30]} {[%emt 00:06:27]} Bg6
{[%clk 01:16:32]} {[%emt 00:03:22]} 14. Nfd4 {[%clk 01:09:40]} {[%emt
00:00:21]} Qd7 {[%clk 01:01:18]} {[%emt 00:15:44]} 15. Bf4 {[%clk 01:08:05]}
{[%emt 00:02:06]} Rad8 {[%clk 00:58:55]} {[%emt 00:02:52]} 16. Qd2 {[%clk
01:07:32]} {[%emt 00:01:02]} f6 {[%clk 00:49:26]} {[%emt 00:10:00]} 17. Rfe1
{[%clk 01:05:40]} {[%emt 00:02:23]} Bf7 {[%clk 00:49:49]} {[%emt 00:00:06]} 18.
Re2 {[%clk 01:05:35]} {[%emt 00:00:36]} Ng6 {[%clk 00:49:31]} {[%emt 00:00:47]}
19. Bg3 {[%clk 01:05:32]} {[%emt 00:00:33]} Nge5 {[%clk 00:46:21]} {[%emt
00:03:40]} 20. Nxc6 {[%clk 01:00:43]} {[%emt 00:05:19]} Nxc6 {[%clk 00:46:29]}
{[%emt 00:00:22]} 21. Nd4 {[%clk 01:00:58]} {[%emt 00:00:15]} Nxd4 {[%clk
00:44:48]} {[%emt 00:02:11]} 22. cxd4 {[%clk 01:01:26]} {[%emt 00:00:02]} Qa4
{[%clk 00:43:28]} {[%emt 00:01:51]} 23. b4 {[%clk 01:01:02]} {[%emt 00:00:54]}
Rfe8 {[%clk 00:37:47]} {[%emt 00:06:11]} 24. Rae1 {[%clk 00:59:33]} {[%emt
00:01:58]} Rxe2 {[%clk 00:37:02]} {[%emt 00:01:14]} 25. Rxe2 {[%clk 01:00:00]}
{[%emt 00:00:04]} a5 {[%clk 00:32:59]} {[%emt 00:04:34]} 26. f4 {[%clk
00:48:06]} {[%emt 00:12:24]} Qxb4 {[%clk 00:25:19]} {[%emt 00:08:10]} 27. Qxb4
{[%clk 00:46:41]} {[%emt 00:01:54]} axb4 {[%clk 00:25:43]} {[%emt 00:00:07]} 28.
Bf2 {[%clk 00:46:24]} {[%emt 00:00:47]} Rc8 {[%clk 00:24:50]} {[%emt 00:01:22]}
29. Re7 {[%clk 00:44:22]} {[%emt 00:02:32]} Rc1+ {[%clk 00:20:23]} {[%emt
00:04:57]} 30. Bf1 {[%clk 00:40:33]} {[%emt 00:04:19]} Rc7 {[%clk 00:14:19]}
{[%emt 00:06:34]} 31. Rxc7 {[%clk 00:40:13]} {[%emt 00:00:51]} Bxc7 {[%clk
00:14:42]} {[%emt 00:00:06]} 32. Be3 {[%clk 00:40:34]} {[%emt 00:00:09]} Be8
{[%clk 00:13:10]} {[%emt 00:02:02]} 33. Kf2 {[%clk 00:39:29]} {[%emt 00:01:35]}
Kf7 {[%clk 00:13:06]} {[%emt 00:00:34]} 34. Bg2 {[%clk 00:35:33]} {[%emt
00:04:26]} Bc6 {[%clk 00:12:32]} {[%emt 00:01:04]} 35. f5 {[%clk 00:35:29]}
{[%emt 00:00:34]} Ke7 {[%clk 00:11:25]} {[%emt 00:01:37]} 36. h4 {[%clk
00:35:24]} {[%emt 00:00:36]} Kd6 {[%clk 00:11:43]} {[%emt 00:00:10]} 37. g5
{[%clk 00:35:23]} {[%emt 00:00:32]} Bd8 {[%clk 00:09:27]} {[%emt 00:02:46]} 38.
Bd2 {[%clk 00:34:16]} {[%emt 00:01:37]} Ba5 {[%clk 00:07:47]} {[%emt 00:02:10]}
39. Bf4+ {[%clk 00:34:19]} {[%emt 00:00:27]} Ke7 {[%clk 00:07:34]} {[%emt
00:00:44]} 40. g6 {[%clk 00:31:51]} {[%emt 00:02:58]} hxg6 {[%clk 00:06:13]}
{[%emt 00:01:51]} 41. fxg6 {[%clk 00:32:19]} {[%emt 00:00:01]} Ke6 {[%clk
00:27:05]} {[%emt 00:09:38]} 42. h5 {[%clk 00:59:47]} {[%emt 00:03:02]} Be8
{[%clk 00:23:47]} {[%emt 00:03:48]} 43. Bh3+ {[%clk 00:59:34]} {[%emt
00:00:44]} Ke7 {[%clk 00:24:04]} {[%emt 00:00:13]} 44. Bf5 {[%clk 00:59:35]}
{[%emt 00:00:28]} Kf8 {[%clk 00:18:24]} {[%emt 00:06:10]} 45. Bd6+ {[%clk
00:59:42]} {[%emt 00:00:23]} Kg8 {[%clk 00:17:57]} {[%emt 00:00:57]} 46. Be6+
{[%clk 00:59:42]} {[%emt 00:00:30]} Kh8 {[%clk 00:18:22]} {[%emt 00:00:06]} 47.
Bxd5 {[%clk 00:59:53]} {[%emt 00:00:18]} Bc6 {[%clk 00:18:10]} {[%emt
00:00:42]} 48. Bf7 {[%clk 00:59:16]} {[%emt 00:01:07]} Bd7 {[%clk 00:16:02]}
{[%emt 00:02:38]} 49. Bf8 {[%clk 00:59:27]} {[%emt 00:00:19]} 1-0

[Event "The Allsvenskan 2024/25 Div I 3: SS Manhem II - Lidkopings SS"]
[Site "Goteborgs Schackcentrum, Vegatan 20, Gothenburg, Sweden"]
[Date "2024.11.17"]
[Round "1.4"]
[White "Krantz, Martin"]
[Black "Nyberg, Arne"]
[Result "1-0"]
[TimeControl "90 minutes for 40 moves + 30 minutes for the rest of the game + 30 seconds per move from move one."]
[WhiteFideId "1724100"]
[BlackFideId "1731815"]
[WhiteElo "2008"]
[BlackElo "1926"]

1. c4 {[%clk 01:30:54]} {[%emt 00:00:05]} Nf6 {[%clk 01:30:54]} {[%emt
00:00:07]} 2. Nf3 {[%clk 01:31:01]} {[%emt 00:00:23]} g6 {[%clk 01:31:17]}
{[%emt 00:00:09]} 3. g3 {[%clk 01:31:18]} {[%emt 00:00:12]} Bg7 {[%clk
01:31:42]} {[%emt 00:00:06]} 4. Bg2 {[%clk 01:31:41]} {[%emt 00:00:06]} O-O
{[%clk 01:32:03]} {[%emt 00:00:09]} 5. O-O {[%clk 01:31:49]} {[%emt 00:00:22]}
c5 {[%clk 01:32:21]} {[%emt 00:00:12]} 6. d4 {[%clk 01:31:09]} {[%emt
00:01:10]} cxd4 {[%clk 01:32:43]} {[%emt 00:00:07]} 7. Nxd4 {[%clk 01:31:32]}
{[%emt 00:00:07]} Nc6 {[%clk 01:33:01]} {[%emt 00:00:13]} 8. Nc3 {[%clk
01:30:22]} {[%emt 00:01:40]} Qb6 {[%clk 01:30:07]} {[%emt 00:03:24]} 9. Nc2
{[%clk 01:24:22]} {[%emt 00:06:29]} d6 {[%clk 01:28:19]} {[%emt 00:02:19]} 10.
b3 {[%clk 01:22:17]} {[%emt 00:02:34]} Bf5 {[%clk 01:21:51]} {[%emt 00:06:59]}
11. e4 {[%clk 01:15:30]} {[%emt 00:07:17]} Bg4 {[%clk 01:22:06]} {[%emt
00:00:15]} 12. Qd2 {[%clk 01:13:35]} {[%emt 00:02:24]} Ne5 {[%emt 00:07:41]} 13.
Qe3 {[%clk 01:07:34]} {[%emt 00:06:29]} Qxe3 {[%emt 00:01:42]} 14. Bxe3 {[%emt
00:01:37]} Bf3 {[%clk 00:56:23]} {[%emt 00:15:47]} 15. Rab1 {[%clk 01:04:30]}
{[%emt 00:03:33]} Bxg2 {[%clk 00:53:38]} {[%emt 00:03:17]} 16. Kxg2 {[%clk
01:04:57]} {[%emt 00:00:03]} Nc6 {[%clk 00:48:09]} {[%emt 00:05:58]} 17. h3
{[%clk 00:59:24]} {[%emt 00:06:01]} Ng4 {[%clk 00:35:39]} {[%emt 00:13:01]} 18.
hxg4 {[%clk 00:57:56]} {[%emt 00:01:58]} Bxc3 {[%clk 00:33:13]} {[%emt
00:02:55]} 19. Rfd1 {[%clk 00:53:33]} {[%emt 00:04:54]} Nb4 {[%clk 00:31:22]}
{[%emt 00:02:21]} 20. Nxb4 {[%clk 00:53:47]} {[%emt 00:00:16]} Bxb4 {[%clk
00:31:42]} {[%emt 00:00:10]} 21. Rd5 {[%clk 00:52:20]} {[%emt 00:01:57]} a6
{[%clk 00:31:01]} {[%emt 00:01:12]} 22. a4 {[%clk 00:48:56]} {[%emt 00:03:53]}
Rac8 {[%clk 00:29:25]} {[%emt 00:02:07]} 23. Rbd1 {[%clk 00:48:39]} {[%emt
00:00:46]} Rc6 {[%clk 00:18:39]} {[%emt 00:11:16]} 24. f4 {[%clk 00:42:25]}
{[%emt 00:06:44]} Rfc8 {[%clk 00:14:41]} {[%emt 00:04:27]} 25. Kf3 {[%clk
00:38:07]} {[%emt 00:04:50]} Bc5 {[%clk 00:13:24]} {[%emt 00:01:47]} 26. Bxc5
{[%clk 00:31:24]} {[%emt 00:07:13]} Rxc5 {[%clk 00:13:41]} {[%emt 00:00:13]} 27.
Ke3 {[%clk 00:30:48]} {[%emt 00:01:06]} Kf8 {[%clk 00:13:53]} {[%emt 00:00:17]}
28. Rxc5 {[%clk 00:24:26]} {[%emt 00:06:53]} Rxc5 {[%clk 00:14:09]} {[%emt
00:00:13]} 29. Kd4 {[%clk 00:23:30]} {[%emt 00:01:26]} e5+ {[%clk 00:12:25]}
{[%emt 00:02:15]} 30. Kc3 {[%clk 00:20:20]} {[%emt 00:03:40]} Ke7 {[%clk
00:12:44]} {[%emt 00:00:10]} 31. Rh1 {[%clk 00:19:47]} {[%emt 00:01:02]} exf4
{[%clk 00:09:50]} {[%emt 00:03:25]} 32. gxf4 {[%clk 00:19:55]} {[%emt
00:00:23]} h5 {[%clk 00:09:21]} {[%emt 00:00:59]} 33. b4 {[%clk 00:18:34]}
{[%emt 00:01:50]} Rc8 {[%clk 00:06:34]} {[%emt 00:03:17]} 34. gxh5 {[%clk
00:18:23]} {[%emt 00:00:42]} Rh8 {[%clk 00:06:35]} {[%emt 00:00:29]} 35. h6
{[%clk 00:18:32]} {[%emt 00:00:20]} f5 {[%clk 00:06:39]} {[%emt 00:00:27]} 36.
Kd4 {[%clk 00:18:07]} {[%emt 00:00:54]} fxe4 {[%clk 00:06:31]} {[%emt
00:00:38]} 37. Kxe4 {[%clk 00:18:20]} {[%emt 00:00:18]} Ke6 {[%clk 00:05:42]}
{[%emt 00:01:19]} 38. h7 {[%clk 00:18:04]} {[%emt 00:00:46]} Kf6 {[%clk
00:05:49]} {[%emt 00:00:23]} 39. Kd5 {[%clk 00:17:05]} {[%emt 00:01:29]} Kf5
{[%clk 00:06:04]} {[%emt 00:00:14]} 40. Rh4 {[%clk 00:17:16]} {[%emt 00:00:19]}
1-0